bitfinex/quotes_ETHUSD_20250722
["timestamp","ask_amount","ask_price","bid_price","bid_amount"]
[1753213655766,0.4425,3672.2,3671.0,2.72400459]
[1753213655914,0.4425,3672.7,3671.6,2.72357379]
[1753213656259,3.0,3672.6,3671.7,2.72346509]
[1753213656461,3.0,3672.6,3671.7,2.72347593]
[1753213656630,3.16531519,3672.7,3671.0,0.39943046]
[1753213656958,0.39690152,3672.6,3671.2,0.4515]
[1753213657163,0.8037,3672.9,3671.3,0.0272383]
[1753213657452,0.8037,3672.9,3672.2,2.72314403]
[1753213657650,0.8037,3672.9,3671.2,0.4515]
[1753213657651,0.8037,3672.9,3672.5,2.72287568]
[1753213657960,0.8037,3672.9,3672.3,2.72302593]
[1753213658255,1.15631383,3672.9,3672.4,2.72300462]
[1753213658455,1.15631383,3672.9,3671.6,0.4515]
[1753213658749,1.15631383,3672.9,3672.3,2.72306019]
[1753213659171,0.8037,3672.9,3672.3,2.72306019]
[1753213659323,2.72299856,3672.5,3671.6,2.72354448]
[1753213659655,2.72292571,3672.6,3671.7,2.72351755]
[1753213659815,3.31179208,3672.5,3671.7,2.72351755]
[1753213660016,2.72303086,3672.4,3671.7,2.72351755]
[1753213660217,2.72332491,3672.0,3671.3,2.72376793]
[1753213660419,2.72310977,3672.3,3671.1,2.72397918]
[1753213660420,2.72330044,3672.1,3671.4,2.72373433]
[1753213660619,0.53042533,3672.0,3671.4,2.72373433]
[1753213660846,2.7234754,3671.8,3670.8,2.72419441]
[1753213661071,2.72375639,3671.5,3670.7,2.72422046]
[1753213661218,0.4425,3671.7,3670.3,0.7855]
[1753213661419,0.4425,3671.7,3670.9,2.72408187]
[1753213661643,2.72361316,3671.6,3670.9,2.72408187]
[1753213661919,2.72411984,3671.0,3670.3,2.72456688]
[1753213662121,0.4425,3671.2,3669.8,0.8251]
[1753213662320,2.72432799,3670.7,3669.9,2.72486988]
[1753213662538,1.0234328,3670.7,3669.9,2.72481614]
[1753213662859,1.0234328,3670.7,3669.0,3.50056126]
[1753213662860,4.2514328,3670.7,3669.0,0.27256126]
[1753213663059,2.72462296,3670.3,3669.6,2.72508424]
[1753213663417,0.4425,3670.6,3669.7,2.724963]
[1753213663617,2.72447545,3670.5,3669.8,2.72493867]
[1753213663821,0.4425,3670.4,3669.0,2.72553829]
[1753213664044,2.72524209,3669.4,3668.7,2.72570229]
[1753213664355,2.72521714,3669.5,3668.3,0.8251]
[1753213664559,0.8279,3669.6,3668.6,2.72576785]
[1753213664560,2.72524839,3669.4,3668.6,2.72576785]
[1753213664761,2.72544196,3669.2,3668.3,3.55114214]
[1753213664922,2.72546591,3669.1,3668.4,2.72596432]
[1753213665118,2.72537023,3669.3,3668.5,2.72586729]
[1753213665365,3.55300508,3669.6,3668.3,0.8251]
[1753213665534,3.55300508,3669.6,3669.0,2.72547359]
[1753213665535,3.222,3669.5,3669.0,2.72547359]
[1753213665733,2.72530038,3669.4,3668.4,3.08110737]
[1753213666060,2.72529326,3669.4,3668.7,2.72575819]
[1753213666263,3.222,3669.5,3668.9,2.72554844]
[1753213666451,3.67124,3669.5,3668.7,2.72572732]
[1753213666647,5.94424834,3669.4,3668.3,0.8251]
[1753213666963,3.219,3669.4,3668.5,2.72589]
[1753213667263,2.72539617,3669.2,3668.5,2.72588449]
[1753213667642,2.72533403,3669.3,3668.6,2.72582233]
[1753213667842,3.218,3669.3,3668.7,2.72574751]
[1753213668456,3.218,3669.3,3668.8,2.72566435]
[1753213668768,3.6567,3669.3,3668.6,2.72582132]
[1753213668966,0.85270769,3669.3,3667.8,3.6755]
[1753213669150,0.85270769,3669.3,3667.9,0.02726355]
[1753213669151,0.41200769,3669.3,3667.9,0.02726355]
[1753213669560,3.66124,3669.5,3668.0,0.4489]
[1753213669754,3.212,3669.5,3669.0,2.72546449]
[1753213670133,3.55300563,3669.6,3668.9,2.72559214]
[1753213670444,0.8279,3669.6,3669.2,2.72532134]
[1753213670647,0.8279,3669.6,3669.2,2.72533479]
[1753213671033,4.0359,3669.6,3669.1,2.72543608]
[1753213671359,4.0359,3669.6,3669.2,2.72536956]
[1753213671532,4.0359,3669.6,3668.5,2.72590977]
[1753213671732,0.8279,3669.6,3668.6,0.31748098]
[1753213671961,3.206,3669.7,3669.1,2.72539894]
[1753213672137,5.72488786,3669.9,3669.3,2.72530179]
[1753213672372,3.205,3669.9,3668.8,0.4489]
[1753213672867,2.72497079,3669.8,3669.1,2.72544792]
[1753213673076,2.72497079,3669.8,3669.1,2.72539885]
[1753213673275,2.72487031,3669.9,3668.8,0.4489]
[1753213673479,2.72499579,3669.8,3668.7,1.2194]
[1753213673767,1.25,3670.1,3668.7,1.2194]
[1753213673768,4.0103,3670.1,3668.9,2.72557175]
[1753213673995,4.0103,3670.1,3669.6,2.72508636]
[1753213674173,0.8093,3670.1,3669.5,2.72516599]
[1753213674378,0.8093,3670.1,3669.0,0.4489]
[1753213674379,0.8093,3670.1,3669.6,2.72503567]
[1753213674579,0.8093,3670.1,3669.5,2.72513865]
[1753213674969,0.8093,3670.1,3669.0,0.4489]
[1753213675304,0.8093,3670.1,3669.5,2.72510383]
[1753213675511,0.8093,3670.1,3669.3,2.72530775]
[1753213675512,0.8093,3670.1,3669.6,2.72506996]
[1753213675808,0.8093,3670.1,3669.7,2.72501106]
[1753213676007,1.2575,3670.6,3668.7,3.49625452]
[1753213676180,0.8168,3670.6,3669.4,0.4489]
[1753213676379,0.4407,3671.0,3669.8,2.7249233]
[1753213676580,1.11047459,3670.9,3670.5,2.72440383]
[1753213676782,4.30447459,3670.9,3670.5,2.72440383]
[1753213676986,0.4407,3670.8,3669.7,0.7743]
[1753213677306,0.4407,3670.8,3668.8,3.194]
[1753213677513,2.72482003,3670.0,3668.8,3.22125686]
[1753213677810,2.72494413,3669.8,3668.9,2.72555772]
[1753213677971,2.72511203,3669.6,3669.0,2.72553686]
[1753213678309,2.72502437,3669.7,3668.9,2.72556833]
[1753213678627,3.193,3670.1,3668.5,4.4172]
[1753213678820,2.382,3673.1,3667.8,9.82283916]
[1753213678821,0.4407,3672.2,3670.3,0.8305]
[1753213679112,0.4407,3672.2,3668.6,1.02615835]
[1753213679113,0.8219,3671.4,3669.4,0.8305]
[1753213679274,0.8219,3671.4,3669.6,2.72509265]
[1753213679275,6.6847,3671.3,3669.6,2.72509265]
[1753213679596,0.75066,3671.2,3669.5,0.4489]
[1753213679816,3.244,3671.2,3669.5,0.47615166]
[1753213680010,0.4407,3671.3,3669.7,2.72501839]
[1753213680218,3.16457841,3671.3,3670.6,2.7243301]
[1753213680418,3.8219,3671.4,3670.7,2.72427089]
[1753213680587,0.14221091,3671.6,3670.4,0.8169]
[1753213680786,0.14221091,3671.6,3671.5,2.72368241]
[1753213681233,2.72323738,3672.1,3671.4,2.72373985]
[1753213681414,3.49457988,3672.2,3670.8,3.17308565]
[1753213681621,3.49457988,3672.2,3669.2,2.857]
[1753213681622,0.4407,3672.1,3670.0,2.72479563]
[1753213681799,2.72368313,3671.5,3670.8,2.7241972]
[1753213682004,3.16438313,3671.5,3670.7,2.72426404]
[1753213682234,3.16438313,3671.5,3670.6,2.72429012]
[1753213682235,2.7238127,3671.4,3670.6,2.72429012]
[1753213682440,0.4407,3671.5,3670.0,0.47614795]
[1753213682636,3.238,3671.6,3670.4,3.17338907]
[1753213682941,2.72346948,3671.8,3670.5,2.72442446]
[1753213683245,2.72359048,3671.7,3670.4,0.4489]
[1753213683444,2.723588,3671.7,3670.4,0.4489]
[1753213683632,2.723588,3671.7,3671.0,2.72399973]
[1753213683799,3.236,3671.8,3671.0,2.72399973]
[1753213683992,3.236,3671.8,3671.0,2.72402691]
[1753213684309,0.8035,3671.4,3670.3,2.72451384]
[1753213684514,2.72405728,3671.0,3669.7,0.4489]
[1753213684712,2.72443627,3670.5,3669.5,0.7897]
[1753213684935,2.72443627,3670.5,3669.1,2.72545401]
[1753213684936,0.4407,3670.5,3669.0,0.7897]
[1753213685139,3.8035,3670.3,3668.4,3.51566238]
[1753213685434,0.4407,3670.2,3668.5,0.39655624]
[1753213685737,2.72496469,3669.8,3669.0,2.72552142]
[1753213686038,0.4407,3669.8,3668.5,3.12241704]
[1753213686208,3.16569511,3669.8,3669.1,2.72540387]
[1753213686410,3.229,3669.9,3669.6,2.72503281]
[1753213686625,3.229,3669.9,3668.9,2.72555126]
[1753213686936,3.229,3669.9,3669.6,2.72502265]
[1753213687119,3.229,3669.9,3669.5,2.72514862]
[1753213687322,3.229,3669.9,3669.2,2.72531771]
[1753213687323,3.229,3669.9,3669.4,2.72522039]
[1753213687531,3.229,3669.9,3668.7,2.72576116]
[1753213687532,3.229,3669.9,3669.3,2.72530613]
[1753213687727,3.229,3669.9,3669.4,2.72518252]
[1753213687913,3.1656514,3669.8,3668.6,0.3913117]
[1753213688118,2.72512073,3669.6,3668.9,2.72560161]
[1753213688412,2.72511566,3669.6,3668.9,2.72560161]
[1753213688614,2.72511566,3669.6,3668.6,3.11714314]
[1753213688615,0.4407,3669.8,3669.0,2.7255252]
[1753213688799,0.4407,3669.8,3669.2,2.72538243]
[1753213689000,3.222,3669.9,3669.1,0.02725464]
[1753213689242,3.222,3669.9,3668.7,0.4489]
[1753213689538,3.222,3669.9,3669.6,2.72508233]
[1753213690039,3.222,3669.9,3668.9,2.72561258]
[1753213690040,3.22,3670.1,3669.0,0.4489]
[1753213690226,0.8035,3670.3,3669.0,0.4489]
[1753213690227,0.8035,3670.3,3669.0,0.47615538]
[1753213690429,0.8272,3670.8,3669.1,0.821]
[1753213690737,3.5514068,3670.8,3669.2,3.20154178]
[1753213690909,0.8272,3670.8,3669.4,2.72524118]
[1753213691237,3.217,3670.7,3669.8,2.72487925]
[1753213691439,2.72442446,3670.5,3668.9,2.72558707]
[1753213691640,0.8272,3669.8,3668.6,1.2071117]
[1753213691804,0.8272,3669.8,3669.1,2.72545047]
[1753213692007,3.55220044,3669.8,3669.1,2.72545047]
[1753213692216,0.8272,3669.8,3668.7,0.16560117]
[1753213692660,0.8272,3669.8,3669.4,2.72523613]
[1753213692938,0.8272,3669.8,3669.3,2.72527258]
[1753213693141,0.8272,3669.8,3668.7,0.61450117]
[1753213693142,2.72507852,3669.7,3669.0,2.72548475]
[1753213693345,0.4407,3669.7,3668.7,0.16560117]
[1753213693524,0.4407,3669.7,3668.8,0.18216129]
[1753213693725,2.72516573,3669.6,3668.9,2.72559867]
[1753213693904,0.4407,3669.7,3668.8,0.18216129]
[1753213694106,0.8272,3669.8,3668.8,0.18216129]
[1753213694406,0.8272,3669.8,3669.4,2.72518346]
[1753213694613,0.8272,3669.8,3669.5,2.72513936]
[1753213694815,0.7959,3670.6,3669.5,0.27251394]
[1753213695042,3.208,3670.5,3669.6,0.4489]
[1753213695241,0.7959,3670.6,3669.7,2.72501839]
[1753213695549,0.7959,3670.6,3670.4,2.72449834]
[1753213695742,3.207,3671.0,3669.6,0.4489]
[1753213695912,5.92905339,3671.0,3670.0,2.72472589]
[1753213696113,1.1955,3671.1,3669.5,0.7618]
[1753213696313,0.7548,3671.1,3669.7,2.72501839]
[1753213696530,0.7998,3671.7,3670.0,0.8287]
[1753213696704,0.7998,3671.7,3670.1,3.68114721]
[1753213696903,1.2405,3671.7,3670.2,1.88201358]
[1753213697105,1.2405,3671.7,3670.5,2.72435104]
[1753213697106,2.72395479,3671.2,3670.5,2.72435104]
[1753213697304,2.72395907,3671.2,3670.5,2.72442132]
[1753213697508,2.72393216,3671.2,3670.5,2.72441462]
[1753213697707,0.4407,3671.6,3670.1,3.205]
[1753213697945,2.72389506,3671.3,3670.2,0.02724647]
[1753213698110,5.72376521,3671.4,3670.8,2.72419027]
[1753213698446,5.72376979,3671.4,3670.7,2.72426466]
[1753213698629,6.201,3671.4,3670.7,2.72426466]
[1753213698818,0.93971095,3671.3,3670.2,0.67857719]
[1753213699012,2.72390499,3671.2,3670.1,3.205]
[1753213699349,0.773,3671.0,3670.1,2.72471577]
[1753213699554,0.773,3671.0,3670.3,2.72452018]
[1753213699722,1.26390264,3671.0,3669.6,0.7905]
[1753213699930,2.72415553,3670.9,3670.2,2.7245834]
[1753213700131,3.97,3671.0,3669.8,2.72494413]
[1753213700330,3.97,3671.0,3669.7,0.50215018]
[1753213700517,0.773,3671.0,3670.8,2.72419652]
[1753213700825,0.773,3671.0,3670.1,2.72469777]
[1753213701030,0.773,3671.0,3670.4,2.72448937]
[1753213701210,1.44218326,3671.0,3670.5,2.72441954]
[1753213701413,1.2454,3671.0,3669.8,2.72489229]
[1753213701625,1.2454,3671.0,3670.4,2.7244375]
[1753213701828,1.2454,3671.0,3670.6,2.72433405]
[1753213702024,1.2454,3671.0,3670.6,2.72430442]
[1753213702025,0.773,3671.0,3670.6,2.72430442]
[1753213702331,0.4724,3670.9,3670.2,2.72459521]
[1753213702541,0.4724,3670.9,3669.1,0.814]
[1753213702766,2.72442792,3670.5,3669.2,2.72534993]
[1753213702933,3.19,3670.6,3669.1,3.539426]
[1753213703128,0.7914,3670.5,3669.9,2.72481406]
[1753213703332,0.7914,3670.5,3669.1,1.57990337]
[1753213703333,3.19,3670.4,3670.0,2.72479486]
[1753213703528,3.19,3670.4,3669.2,0.4749]
[1753213703529,3.19,3670.4,3670.1,2.72470034]
[1753213703844,3.6604,3670.5,3670.1,2.72470034]
[1753213704026,3.55304,3670.5,3669.2,0.4749]
[1753213704232,2.72480797,3670.0,3668.6,1.1455117]
[1753213704458,2.72488898,3669.9,3669.3,2.72527951]
[1753213704657,2.72488898,3669.9,3669.2,2.72536778]
[1753213704845,2.72513745,3669.6,3668.9,2.72556541]
[1753213705052,0.4724,3669.5,3668.3,0.001]
[1753213705344,0.4724,3669.5,3668.9,2.72557568]
[1753213705531,0.7545,3669.7,3668.8,0.02725686]
[1753213705761,0.7545,3669.7,3669.6,2.72509265]
[1753213705963,0.7545,3669.7,3668.7,0.4749]
[1753213706164,6.9482,3670.1,3669.7,2.72497961]
[1753213706352,0.7642,3670.1,3669.7,2.72497961]
[1753213706568,3.9482,3670.1,3669.7,2.72497961]
[1753213706765,3.7642,3670.1,3669.8,2.72492792]
[1753213706993,0.7642,3670.1,3669.2,1.2474]
[1753213707285,2.72465636,3670.2,3668.9,2.72555494]
[1753213707582,3.19714853,3670.1,3669.4,2.72517877]
[1753213707777,3.48020093,3670.0,3669.2,2.72535333]
[1753213707936,0.7554,3670.0,3668.7,0.8224]
[1753213708137,2.72496051,3669.8,3668.5,2.72590977]
[1753213708452,0.4724,3669.9,3668.6,0.74400516]
[1753213708631,3.19728192,3669.9,3668.6,0.74400516]
[1753213708834,0.4724,3669.9,3669.4,2.72518276]
[1753213709072,3.4724,3669.9,3669.4,2.72518276]
[1753213709574,2.72423625,3670.8,3669.4,2.72518276]
[1753213709575,0.8167,3671.0,3670.9,2.72412759]
[1753213709775,0.4744,3671.4,3671.3,2.72383079]
[1753213709776,0.8187,3671.4,3671.3,2.72383079]
[1753213710077,0.002,3671.4,3671.3,2.72383079]
[1753213710577,0.002,3671.4,3671.2,2.72387441]
[1753213710772,0.002,3671.4,3671.3,2.72383079]
[1753213710972,0.4744,3671.4,3670.2,3.9362]
[1753213711175,0.4744,3671.4,3670.3,0.42086572]
[1753213711359,0.002,3671.4,3671.3,2.72383079]
[1753213713367,0.002,3671.4,3671.3,3.19873079]
[1753213713592,0.002,3671.4,3671.3,4.18941985]
[1753213714703,0.002,3672.0,3671.9,2.72338571]
[1753213715192,0.002,3672.0,3671.9,2.75061956]
[1753213715396,0.002,3672.0,3671.9,3.19828571]
[1753213715572,0.002,3672.0,3671.9,4.02078571]
[1753213715894,0.002,3672.0,3671.9,5.01573539]
[1753213716401,0.002,3672.9,3672.8,2.72271836]
[1753213717076,0.002,3672.9,3672.2,5.89713226]
[1753213717077,0.002,3672.9,3672.2,3.174]
[1753213717486,0.002,3672.9,3671.9,1.81744968]
[1753213717691,0.7715,3672.8,3671.5,2.7236188]
[1753213717914,0.7715,3672.8,3672.3,2.72303779]
[1753213718116,0.7715,3672.8,3672.4,2.7230058]
[1753213718614,0.002,3672.9,3672.6,2.72279728]
[1753213718814,0.002,3672.9,3672.6,2.72282182]
[1753213719117,0.002,3672.9,3671.9,2.72332752]
[1753213719278,0.002,3672.9,3672.8,2.72271836]
[1753213719678,0.002,3672.9,3672.8,3.19761836]
[1753213720416,0.002,3673.1,3672.8,3.19761836]
[1753213720417,1e-08,3673.1,3673.0,2.7225701]
[1753213720595,1e-08,3673.1,3673.0,2.7497958]
[1753213720913,1e-08,3673.1,3673.0,3.2246958]
[1753213721118,1e-08,3673.1,3673.0,4.61143909]
[1753213721914,1e-08,3673.1,3673.0,7.77843909]
[1753213722115,1e-08,3673.1,3673.0,7.75121339]
[1753213724207,1e-08,3673.1,3673.0,7.74321339]
[1753213724918,1e-08,3673.1,3673.0,4.10931339]
[1753213725122,1e-08,3673.1,3672.2,2.72316322]
[1753213725284,0.4724,3673.0,3672.8,2.72270064]
[1753213725485,0.4724,3672.9,3672.1,0.7735]
[1753213725723,1e-08,3673.1,3672.4,3.158]
[1753213726114,1e-08,3673.1,3672.5,2.7228807]
[1753213726300,1e-08,3673.1,3672.4,3.158]
[1753213726627,1e-08,3673.1,3672.6,2.7228521]
[1753213726928,1e-08,3673.1,3672.7,2.72279249]
[1753213727129,1e-08,3673.1,3673.0,2.7225701]
[1753213727688,1e-08,3673.1,3672.7,0.55303357]
[1753213728013,1e-08,3673.1,3673.0,2.7225701]
[1753213728321,1e-08,3673.1,3672.7,0.55303357]
[1753213728528,1e-08,3673.1,3672.8,2.72271119]
[1753213728769,1e-08,3673.1,3672.4,3.158]
[1753213728770,1e-08,3673.1,3672.9,2.72262282]
[1753213728891,1e-08,3673.1,3673.0,2.7225701]
[1753213733523,1e-08,3673.1,3673.0,2.7497958]
[1753213733687,1e-08,3673.1,3673.0,3.61174082]
[1753213734599,1e-08,3673.1,3673.0,3.58451512]
[1753213734814,1e-08,3673.1,3673.0,2.7225701]
[1753213736222,1e-08,3673.1,3673.0,5.8635701]
[1753213736413,1.29190001,3673.1,3671.8,0.8248]
[1753213736615,1.29190001,3673.1,3671.4,0.4539]
[1753213736616,0.4687,3673.0,3672.1,2.72322977]
[1753213736803,2.72278237,3672.8,3672.1,2.72322977]
[1753213737333,0.4687,3672.7,3672.1,2.72322977]
[1753213737556,3.8232,3672.6,3671.3,0.99068906]
[1753213737831,0.4687,3672.5,3671.9,2.72337182]
[1753213738006,0.4687,3672.5,3671.2,2.72390499]
[1753213738007,2.72302586,3672.4,3671.7,2.72347612]
[1753213738192,3.1916645,3672.5,3671.8,2.72345466]
[1753213738694,3.19165521,3672.5,3671.8,2.72345466]
[1753213739003,0.4687,3672.5,3671.6,2.72356827]
[1753213739199,0.4687,3672.4,3671.6,2.72356827]
[1753213739401,2.72310246,3672.3,3671.6,2.72356827]
[1753213739618,2.72322078,3672.2,3671.3,3.141]
[1753213739934,3.19173247,3672.4,3671.7,2.72348397]
[1753213740924,0.4687,3672.4,3671.4,2.7237566]
[1753213741226,0.4687,3672.4,3672.1,2.7232163]
[1753213741592,0.8232,3672.6,3672.1,2.72318452]
[1753213741829,0.8232,3672.6,3671.3,3.72748393]
[1753213741830,0.8232,3672.6,3671.7,3.134]
[1753213741996,1.2919,3672.6,3671.7,3.134]
[1753213742198,1.2919,3672.6,3672.1,2.72317858]
[1753213742398,0.4687,3672.5,3672.1,2.72317858]
[1753213742935,0.4687,3672.5,3672.3,2.72307605]
[1753213743229,0.4687,3672.5,3671.7,3.134]
[1753213743418,0.4687,3672.5,3672.2,2.72315789]
[1753213743619,0.4687,3672.5,3671.7,3.134]
[1753213743620,0.4687,3672.5,3671.7,5.85747589]
[1753213743934,1.2196,3673.0,3672.5,2.72294077]
[1753213744108,1.2196,3673.0,3672.6,2.72284442]
[1753213744431,1.2196,3673.0,3672.0,0.02723311]
[1753213744432,0.7509,3673.0,3672.0,0.02723311]
[1753213744617,0.7509,3673.0,3672.7,2.72271979]
[1753213744817,1e-08,3673.1,3672.9,2.72264423]
[1753213745033,0.4687,3673.0,3671.7,0.97114075]
[1753213745317,2.72292155,3672.6,3672.4,0.001]
[1753213745672,6.48374077,3672.5,3672.4,0.001]
[1753213745794,6.48374077,3672.5,3670.9,0.001]
[1753213745795,2.72362028,3671.6,3670.9,0.001]
[1753213746142,0.7693,3671.5,3670.9,0.001]
[1753213746345,2.7240496,3671.1,3670.9,0.001]
[1753213746833,3.19275339,3671.0,3670.9,0.001]
[1753213747034,0.4687,3671.0,3670.9,0.001]
[1753213747635,3.98335339,3671.0,3670.9,0.001]
[1753213748033,3.51465339,3671.0,3670.9,0.001]
[1753213748238,3.98335339,3671.0,3670.9,0.001]
[1753213748425,4.65409227,3671.0,3670.9,0.001]
[1753213748622,7.65409227,3671.0,3670.9,0.001]
[1753213749636,10.78609227,3671.0,3670.9,0.001]
[1753213749834,4.2593,3671.0,3670.9,0.001]
[1753213750002,4.3883,3671.0,3670.9,0.001]
[1753213750610,1.2593,3671.0,3670.9,0.001]
[1753213750836,4.3873,3671.0,3670.9,0.001]
[1753213752247,1.2593,3671.0,3670.9,0.001]
[1753213752450,4.3863,3671.0,3670.9,0.001]
[1753213752947,1.2593,3671.0,3670.9,0.001]
[1753213753152,0.69218681,3672.0,3670.9,0.001]
[1753213753153,0.4687,3671.5,3670.9,0.001]
[1753213753610,3.123,3671.4,3671.3,2.72382377]
[1753213753812,3.123,3671.4,3670.9,0.001]
[1753213753813,0.7609,3671.8,3670.9,0.001]
[1753213754142,0.7609,3671.8,3671.7,2.72353405]
[1753213754319,3.123,3671.8,3671.7,2.72353405]
[1753213754519,3.122,3671.9,3671.8,2.72342495]
[1753213754722,0.8241,3672.2,3672.1,2.72323738]
[1753213754921,0.4687,3672.6,3671.9,2.72338255]
[1753213754922,1.2928,3672.6,3671.9,2.72338255]
[1753213755230,3.122,3672.5,3671.5,0.02723682]
[1753213755429,3.122,3672.5,3672.0,2.72324161]
[1753213755631,6.31276609,3672.4,3671.0,0.8024]
[1753213755946,6.31276609,3672.4,3669.5,2.72516238]
[1753213755947,2.72405339,3671.0,3670.1,2.72468452]
[1753213756117,3.9153,3671.0,3670.4,2.72448196]
[1753213756322,7.10805339,3671.0,3670.1,2.72469806]
[1753213756642,7.11405339,3671.0,3669.5,0.7644]
[1753213756842,7.11405339,3671.0,3670.1,2.7247027]
[1753213757203,7.11305339,3671.0,3669.9,2.72486737]
[1753213757409,7.11305339,3671.0,3669.5,0.7644]
[1753213757410,7.11305339,3671.0,3670.0,2.72478257]
[1753213757606,7.89075875,3671.0,3670.0,2.72473248]
[1753213757830,7.89075875,3671.0,3669.5,0.7644]
[1753213758041,7.89075875,3671.0,3669.7,2.72495648]
[1753213758247,8.44075875,3671.0,3669.6,2.725044]
[1753213758446,8.44075875,3671.0,3669.1,0.7631]
[1753213758629,8.44075875,3671.0,3669.8,2.72487362]
[1753213758834,4.76475875,3671.0,3669.4,2.72520339]
[1753213759038,7.11005339,3671.0,3670.0,2.72476906]
[1753213759438,7.10905339,3671.0,3669.7,0.4354]
[1753213759636,7.10905339,3671.0,3669.8,2.72493296]
[1753213759951,7.10905339,3671.0,3669.9,2.7248474]
[1753213760251,7.10905339,3671.0,3670.2,2.7245954]
[1753213760453,4.385,3671.0,3670.1,0.7741]
[1753213760750,7.10905339,3671.0,3670.1,2.72470727]
[1753213761251,7.10905339,3671.0,3670.4,2.72448921]
[1753213761417,3.12,3671.0,3670.4,2.72448669]
[1753213761617,3.12,3671.0,3670.6,2.72428752]
[1753213761813,3.12,3671.0,3670.7,2.72426691]
[1753213762353,3.12,3671.0,3670.6,2.72429982]
[1753213762672,3.12,3671.0,3670.5,2.72442217]
[1753213763049,3.12,3671.0,3670.7,2.72426027]
[1753213763653,3.12,3671.0,3670.8,2.72415018]
[1753213764025,1.2637,3671.4,3671.0,2.72402634]
[1753213764226,4.576,3671.6,3671.3,2.7238177]
[1753213764440,3.12,3671.5,3671.3,2.72376452]
[1753213764751,4.576,3671.6,3670.6,1.2232]
[1753213764915,3.12,3671.5,3670.6,1.2232]
[1753213765117,3.12,3671.5,3671.1,2.72396394]
[1753213765350,3.12,3671.5,3671.2,2.72389593]
[1753213765847,3.12,3671.5,3671.3,2.7238277]
[1753213766050,4.576,3671.6,3671.5,2.72368241]
[1753213766428,3.12,3671.6,3671.5,2.72368241]
[1753213766630,1.267,3672.3,3671.8,2.72342819]
[1753213766866,1.267,3672.3,3670.9,0.4364]
[1753213766867,3.12,3672.2,3671.9,2.72337361]
[1753213767172,2.72272437,3672.8,3671.5,0.02723682]
[1753213767173,0.8266,3672.7,3671.5,0.02723682]
[1753213767370,3.12,3672.6,3672.1,2.72321996]
[1753213767579,5.84289287,3672.6,3671.9,2.72335932]
[1753213767873,0.8266,3672.7,3671.5,0.4354]
[1753213768056,3.119,3672.6,3672.2,2.72311414]
[1753213768255,3.119,3672.6,3672.0,2.72325763]
[1753213768442,5.84189507,3672.6,3671.9,2.72336973]
[1753213768648,2.72294651,3672.5,3671.5,0.4354]
[1753213768846,3.119,3672.6,3672.1,2.72322387]
[1753213769046,6.28230502,3672.6,3672.0,2.7232889]
[1753213769286,2.72300801,3672.5,3671.8,2.72341485]
[1753213769568,3.119,3672.4,3672.1,2.72316426]
[1753213770069,3.119,3672.4,3672.3,2.72308907]
[1753213770274,4.576,3672.9,3672.4,2.722969]
[1753213770482,0.14213994,3672.4,3671.9,0.02723385]
[1753213770773,3.119,3672.5,3672.4,2.72301492]
[1753213770972,3.119,3672.5,3672.3,2.72307291]
[1753213771174,4.576,3672.9,3672.0,0.75400937]
[1753213771477,0.1421339,3672.5,3672.4,2.72301492]
[1753213771639,3.2611339,3672.5,3672.4,2.72301492]
[1753213772373,0.1421339,3672.5,3672.4,3.97111492]
[1753213772574,0.1421339,3672.5,3672.4,3.53571492]
[1753213774256,0.1421339,3672.5,3672.4,0.8127]
[1753213774578,4.13189402,3672.5,3671.6,2.72357937]
[1753213774776,4.13192946,3672.5,3671.8,2.72341492]
[1753213775164,4.13192946,3672.5,3671.9,2.72338387]
[1753213775366,1.4089339,3672.5,3671.6,0.35035794]
[1753213775570,1.4089339,3672.5,3672.1,2.7232269]
[1753213775767,0.9685339,3672.5,3671.9,2.72336989]
[1753213775969,0.4404,3672.4,3671.3,0.78]
[1753213776152,0.4404,3672.4,3671.4,2.7237566]
[1753213776153,5.84112646,3672.3,3671.4,2.7237566]
[1753213776481,2.72320479,3672.2,3671.5,2.72368241]
[1753213776667,2.72320479,3672.2,3671.6,2.72360138]
[1753213776978,3.118,3672.3,3671.4,2.7237566]
[1753213776979,3.118,3672.3,3671.8,2.72342075]
[1753213777179,3.118,3672.2,3671.9,2.72338571]
[1753213777697,0.4404,3672.4,3671.7,2.72352083]
[1753213777880,3.118,3672.1,3671.3,0.78]
[1753213778065,2.72346764,3671.8,3670.9,2.72511393]
[1753213778379,3.16398798,3671.7,3671.0,2.7240081]
[1753213778569,3.118,3671.6,3671.0,2.7240081]
[1753213778772,3.118,3671.6,3670.9,0.001]
[1753213778773,2.72405339,3671.0,3670.9,0.001]
[1753213779100,5.84205339,3671.0,3670.9,0.001]
[1753213779261,10.00754707,3671.0,3670.9,0.001]
[1753213779454,10.83934707,3671.0,3670.9,0.001]
[1753213781554,10.98157983,3671.0,3670.9,0.001]
[1753213783662,7.86357983,3671.0,3670.9,0.001]
[1753213783856,10.98157983,3671.0,3670.9,0.001]
[1753213784056,7.86357983,3671.0,3670.9,0.001]
[1753213784268,10.98157983,3671.0,3670.9,0.001]
[1753213784567,7.86357983,3671.0,3670.9,0.001]
[1753213785170,10.98157983,3671.0,3670.9,0.001]
[1753213786406,1.41443276,3671.0,3670.9,0.001]
[1753213786582,7.25648615,3671.0,3670.9,0.001]
[1753213786994,10.25648615,3671.0,3670.9,0.001]
[1753213787600,7.13848615,3671.0,3670.9,0.001]
[1753213787772,10.25648615,3671.0,3670.9,0.001]
[1753213787973,11.39476009,3671.0,3670.9,0.001]
[1753213788882,7.09203276,3671.0,3670.9,0.001]
[1753213789098,6.26023276,3671.0,3670.9,0.001]
[1753213789913,8.98428615,3671.0,3670.9,0.001]
[1753213790061,3.465,3671.0,3670.9,0.001]
[1753213790261,1.2581,3671.4,3670.9,0.001]
[1753213790592,3.118,3671.3,3670.9,0.001]
[1753213791696,3.118,3671.3,3671.0,2.72404902]
[1753213791903,1.2393,3671.8,3671.4,2.72368373]
[1753213792199,0.1422151,3671.9,3670.9,0.001]
[1753213792399,0.1422151,3671.9,3671.8,2.72345988]
[1753213792563,0.1422151,3671.9,3671.3,2.72383079]